bitfinex-derivatives/quotes_ETHF0:USTF0_20250824
["timestamp","ask_amount","ask_price","bid_price","bid_amount"]
[1756079368986,1.3285,4783.3,4783.2,1.1005]
[1756079369887,0.7551,4783.3,4783.2,1.3178]
[1756079370088,1.1016,4783.3,4783.2,1.1627]
[1756079370288,1.3285,4783.3,4783.2,0.5401]
[1756079370593,1.3285,4783.3,4783.2,1.1005]
[1756079370994,1.3285,4783.3,4783.2,1.3178]
[1756079371291,0.7551,4783.3,4783.2,1.3178]
[1756079371497,0.5734,4783.7,4783.2,1.3178]
[1756079371697,3.9629,4783.9,4783.8,0.5401]
[1756079371895,4.5363,4783.9,4783.8,1.1005]
[1756079372294,0.8015,4784.4,4783.8,1.3178]
[1756079372495,0.3754,4784.4,4784.3,0.9931]
[1756079372698,0.3754,4784.4,4784.3,1.3178]
[1756079373194,0.6017,4784.4,4784.3,1.3178]
[1756079373396,0.2281,4784.7,4784.6,0.5401]
[1756079373600,0.2269,4785.1,4785.0,0.9931]
[1756079373601,0.2281,4785.1,4785.0,0.9931]
[1756079373801,0.3754,4785.1,4785.0,1.3178]
[1756079374099,1.3285,4785.1,4785.0,1.1005]
[1756079374895,1.3285,4784.7,4784.6,0.5604]
[1756079375192,1.3285,4784.7,4784.6,1.1005]
[1756079375802,0.6017,4785.0,4784.9,0.5401]
[1756079375989,0.6017,4785.0,4784.9,1.3178]
[1756079376402,1.3285,4785.0,4784.9,1.1005]
[1756079377395,0.3754,4785.0,4784.9,1.3178]
[1756079377600,1.3285,4785.0,4784.9,1.3178]
[1756079378000,1.1016,4785.0,4784.9,1.3178]
[1756079378295,0.7551,4785.0,4784.9,1.3178]
[1756079378491,0.2281,4785.0,4784.9,1.3178]
[1756079378697,0.6017,4785.2,4785.1,0.5401]
[1756079378891,3.2078,4785.3,4785.1,1.3178]
[1756079379099,3.2078,4785.3,4785.2,1.3178]
[1756079379898,0.8015,4786.3,4785.3,1.19568]
[1756079380202,0.5734,4786.1,4785.5,0.2357]
[1756079380402,0.5734,4786.3,4785.9,1.3178]
[1756079380602,1.3285,4786.1,4786.0,0.5401]
[1756079381202,1.3285,4786.1,4786.0,1.1005]
[1756079383804,1.3285,4786.1,4786.0,0.3887]
[1756079383993,1.3285,4786.1,4786.0,0.153]
[1756079384503,0.527,4785.3,4785.2,3.7516]
[1756079384700,1.3285,4785.3,4785.2,3.2078]
[1756079385299,1.3285,4785.3,4785.2,3.7516]
[1756079385499,1.3285,4785.3,4785.2,3.5159]
[1756079385804,1.3285,4785.3,4785.2,4.3083]
[1756079386005,1.3285,4785.3,4785.2,3.9836]
[1756079386596,1.3285,4785.3,4785.2,4.3083]
[1756079387099,1.3285,4785.8,4785.7,1.3178]
[1756079387700,1.3285,4785.8,4785.7,1.1005]
[1756079388102,1.3285,4785.8,4785.3,0.2173]
[1756079388103,0.8015,4785.7,4785.3,0.2357]
[1756079388302,1.3285,4785.3,4785.2,3.2078]
[1756079388898,1.3285,4785.3,4785.2,3.5159]
[1756079389101,1.3285,4785.3,4785.2,4.3083]
[1756079389405,1.3285,4785.3,4785.2,4.5256]
[1756079389406,1.1016,4785.3,4785.2,4.5256]
[1756079390008,0.7551,4785.3,4785.2,4.5256]
[1756079390201,0.2269,4785.7,4785.2,4.5256]
[1756079390403,0.8015,4786.3,4785.3,0.7777]
[1756079390598,40.8,4786.4,4785.3,0.7777]
[1756079390599,0.7207,4786.1,4786.0,0.3081]
[1756079390808,1.3285,4786.1,4786.0,1.1005]
[1756079391004,0.8015,4786.0,4785.2,3.2078]
[1756079391206,1.3285,4785.3,4785.2,3.5159]
[1756079391400,0.7551,4785.3,4785.2,4.5256]
[1756079391709,0.2281,4786.2,4785.6,0.7777]
[1756079392006,1.1016,4785.7,4785.6,1.3178]
[1756079392205,1.3285,4785.7,4785.6,1.3178]
[1756079392409,0.6017,4785.7,4785.6,1.3178]
[1756079392713,0.3754,4785.9,4785.8,1.3178]
[1756079392910,0.7551,4785.9,4785.8,1.3178]
[1756079393209,1.3285,4785.9,4785.8,1.3178]
[1756079393411,1.1016,4785.9,4785.8,1.3178]
[1756079393610,3.2078,4786.4,4785.8,1.3178]
[1756079393611,0.5734,4786.3,4785.8,1.3178]
[1756079393814,1.3285,4786.2,4786.1,1.1005]
[1756079395813,0.8015,4786.2,4786.1,1.3178]
[1756079396020,1.3285,4786.2,4786.1,1.1005]
[1756079397212,1.3285,4786.1,4786.0,0.7758]
[1756079397414,1.1016,4786.1,4786.0,1.3178]
[1756079398022,1.329,4786.1,4786.0,1.1005]
[1756079399716,1.329,4786.1,4785.2,3.62578]
[1756079399717,0.5581,4786.0,4785.4,0.573]
[1756079399918,0.5913,4786.0,4785.9,1.0853]
[1756079400219,0.5245,4786.5,4786.4,1.0853]
[1756079400420,0.3741,4786.5,4786.4,1.3166]
[1756079401120,0.8654,4786.8,4786.7,0.5123]
[1756079401320,1.31,4786.8,4786.7,1.0853]
[1756079401521,3.2078,4786.9,4786.7,1.3166]
[1756079401722,3.2078,4786.9,4786.8,0.7548]
[1756079401919,3.2078,4786.9,4786.8,1.3166]
[1756079402321,3.9495,4786.9,4786.8,1.3166]
[1756079402522,4.2904,4786.9,4786.8,1.3166]
[1756079402829,0.5913,4786.9,4786.8,1.3166]
[1756079403217,0.2172,4787.2,4787.1,0.5123]
[1756079403419,0.7417,4787.2,4787.1,1.3166]
[1756079403624,1.31,4787.2,4787.1,1.0853]
[1756079404216,1.0826,4787.2,4787.1,1.0853]
[1756079404518,3.2078,4787.4,4787.1,0.5123]
[1756079404723,3.425,4787.4,4787.3,1.3166]
[1756079404925,3.5808,4787.4,4787.3,1.3166]
[1756079405119,0.5913,4787.4,4787.3,1.3166]
[1756079406824,1.0826,4787.4,4787.3,1.3166]
[1756079407220,1.31,4787.4,4787.3,1.3166]
[1756079408723,1.0928,4786.5,4786.4,3.2078]
[1756079408929,1.31,4786.5,4786.4,3.2078]
[1756079409626,0.5245,4786.5,4785.8,3.2078]
[1756079409831,0.7855,4786.3,4786.0,0.8043]
[1756079410037,1.31,4786.3,4786.2,0.5235]
[1756079410226,1.31,4786.3,4786.2,0.7374]
[1756079410934,1.31,4786.3,4786.2,1.0853]
[1756079411327,1.31,4786.3,4786.2,0.3628]
[1756079411533,1.31,4786.3,4786.2,0.5123]
[1756079412030,1.31,4786.3,4786.2,1.0853]
[1756079412936,0.5245,4786.3,4785.8,3.2078]
[1756079413227,1.31,4786.0,4785.9,1.0853]
[1756079415235,1.0826,4786.0,4785.9,1.3166]
[1756079415631,0.7417,4786.0,4785.9,1.3166]
[1756079415834,0.373,4786.0,4785.9,1.3166]
[1756079416337,0.1558,4786.0,4785.9,1.3166]
[1756079416635,0.2274,4786.4,4785.9,0.5123]
[1756079416836,0.5245,4786.3,4786.2,0.5123]
[1756079417134,0.5245,4786.3,4786.2,1.3166]
[1756079417435,1.31,4786.3,4786.2,1.0853]
[1756079417624,0.5245,4786.3,4785.8,3.2078]
[1756079417833,3.2078,4787.0,4785.8,1.0853]
[1756079417834,1.31,4785.9,4785.8,1.0853]
[1756079418034,1.31,4785.9,4785.8,1.3166]
[1756079418838,0.5234,4785.9,4785.8,1.3166]
[1756079419036,0.2172,4786.2,4785.9,0.8043]
[1756079419233,0.2172,4786.2,4785.6,3.2078]
[1756079419234,1.31,4786.2,4785.6,3.2078]
[1756079419433,1.31,4785.7,4785.6,4.2931]
[1756079420134,0.5245,4785.4,4785.3,0.3746]
[1756079420335,1.31,4785.4,4785.3,0.3746]
[1756079420541,1.31,4785.4,4785.3,1.0853]
[1756079421040,1.31,4785.4,4785.3,1.3166]
[1756079421639,0.2172,4785.8,4785.3,0.7436]
[1756079421839,0.2172,4785.8,4785.1,3.2078]
[1756079421840,0.7417,4785.8,4785.7,1.3166]
[1756079422042,1.0826,4785.8,4785.7,1.3166]
[1756079422446,0.7417,4785.8,4785.7,1.3166]
[1756079422637,0.2172,4786.1,4786.0,0.5123]
[1756079422942,0.5683,4786.6,4786.0,1.3166]
[1756079423145,1.31,4786.1,4786.0,1.0853]
[1756079423739,1.31,4786.1,4786.0,0.1495]
[1756079423940,0.5245,4785.7,4785.6,4.2931]
[1756079424246,1.31,4785.7,4785.6,1.0853]
[1756079425345,1.31,4785.7,4785.6,4.5244]
[1756079425541,1.31,4785.7,4785.6,1.3166]
[1756079425943,0.2274,4786.6,4785.9,0.5123]
[1756079426143,0.1558,4786.2,4786.1,0.9687]
[1756079426440,1.31,4786.2,4786.1,1.3166]
[1756079426640,1.31,4786.2,4786.1,1.0853]
[1756079427648,0.5225,4785.9,4785.8,0.5701]
[1756079427950,1.2949,4785.9,4785.8,1.3259]
[1756079428745,0.7464,4785.9,4785.8,1.3259]
[1756079428947,0.2239,4787.3,4786.7,0.7558]
[1756079429245,4.5027,4787.3,4786.9,0.2249]
[1756079429445,0.9173,4786.1,4786.0,0.378]
[1756079429645,1.2949,4786.1,4786.0,1.1017]
[1756079430745,1.2949,4786.1,4785.6,0.5708]
[1756079430942,0.5225,4785.4,4785.3,3.2078]
[1756079431147,1.2949,4785.4,4785.3,3.5148]
[1756079431446,1.2949,4785.4,4785.3,3.737]
[1756079431651,1.2949,4785.4,4785.3,4.3095]
[1756079432146,0.1537,4785.7,4785.6,0.307]
[1756079432347,0.369,4785.7,4785.6,0.5309]
[1756079432546,0.369,4785.7,4785.6,1.3266]
[1756079432547,1.071,4785.7,4785.6,1.3266]
[1756079432742,0.5225,4785.7,4785.6,1.3266]
[1756079432952,1.2949,4785.7,4785.6,0.7266]
[1756079433150,1.2949,4785.7,4785.6,0.378]
[1756079433451,1.2949,4785.7,4785.6,0.5292]
[1756079433651,1.2949,4785.7,4785.6,0.1558]
[1756079433847,0.3688,4785.4,4785.3,0.9505]
[1756079434053,0.5225,4785.4,4784.9,0.2222]
[1756079434245,1.2949,4785.0,4784.9,0.378]
[1756079434649,0.5506,4785.6,4785.0,0.7957]
[1756079434845,0.2239,4786.1,4785.5,1.3266]
[1756079435050,0.2239,4786.3,4785.8,1.3266]
[1756079435255,0.8492,4786.2,4786.1,0.5309]
[1756079435450,1.071,4786.2,4786.1,1.1017]
[1756079435849,1.2949,4786.2,4786.1,1.1017]
[1756079436051,1.2949,4786.2,4785.7,0.5708]
[1756079436549,1.2949,4785.6,4785.0,3.2078]
[1756079436748,1.49287335,4788.3,4784.8,0.2222]
[1756079436749,0.5506,4785.4,4784.8,1.3266]
[1756079436950,0.3267,4785.8,4785.3,0.978]
[1756079437154,0.9175,4785.8,4785.7,1.3266]
[1756079437349,1.071,4785.8,4785.7,0.7283]
[1756079437554,0.5225,4785.3,4785.2,1.1017]
[1756079437757,0.7464,4785.3,4785.2,1.3266]
[1756079438450,1.2949,4785.3,4785.2,1.1017]
[1756079439556,1.2949,4785.3,4785.2,0.7531]
[1756079439956,1.2949,4785.3,4785.2,1.1017]
[1756079441854,0.5485,4785.7,4785.2,1.3266]
[1756079442156,1.1414,4785.7,4785.6,1.3266]
[1756079442358,0.1537,4785.7,4785.6,1.3266]
[1756079442558,0.7464,4785.7,4785.6,1.3266]
[1756079442762,1.0731,4785.7,4785.6,1.3266]
[1756079443058,0.7464,4785.7,4785.6,1.3266]
[1756079444161,1.2949,4785.6,4785.0,0.2222]
[1756079444351,0.5225,4785.1,4785.0,0.5292]
[1756079444557,1.2949,4785.1,4785.0,0.5292]
[1756079446059,1.2949,4785.1,4785.0,1.1017]
[1756079448658,0.1535,4784.7,4784.6,0.5708]
[1756079448859,1.2949,4784.7,4784.6,0.1558]
[1756079449056,0.7724,4784.6,4784.5,3.2078]
[1756079449367,1.2949,4784.6,4784.5,3.2078]
[1756079451059,1.2949,4784.6,4784.5,3.5148]
[1756079451257,3.2078,4785.1,4784.5,3.7387]
[1756079451462,4.2809,4785.1,4785.0,1.1044]
[1756079451661,3.3615,4785.1,4785.0,1.3266]
[1756079451857,0.3267,4785.5,4785.0,0.5309]
[1756079452063,0.3267,4785.5,4784.8,3.2078]
[1756079452064,1.2949,4785.4,4785.3,1.3266]
[1756079453267,1.2949,4785.4,4785.3,1.1017]
[1756079457669,1.2949,4785.4,4785.3,0.5309]
[1756079457865,1.2949,4785.4,4785.3,0.307]
[1756079458065,1.2949,4785.4,4785.3,1.101]
[1756079458865,0.5225,4785.4,4785.0,0.2281]
[1756079459064,0.5238,4785.0,4784.9,0.2892]
[1756079459264,1.3182,4785.0,4784.9,0.5234]
[1756079459559,1.3182,4785.0,4784.9,1.0832]
[1756079459764,1.3182,4785.0,4784.9,1.2983]
[1756079462173,1.3182,4785.0,4784.6,0.2281]
[1756079462469,0.5238,4784.5,4784.4,0.5173]
[1756079462668,1.3182,4784.5,4784.4,0.5173]
[1756079462874,1.3182,4784.5,4784.4,0.2892]
[1756079463371,1.3182,4784.5,4784.4,1.0832]
[1756079463765,1.3182,4784.5,4784.4,0.7515]
[1756079464073,1.3182,4784.5,4784.1,0.3317]
[1756079464269,0.7591,4784.2,4784.1,1.0832]
[1756079464470,1.3182,4784.2,4784.1,1.0832]
[1756079465866,0.2353,4784.1,4783.8,0.5598]
[1756079466067,1.3182,4783.8,4783.7,3.2078]
[1756079466464,1.3182,4783.8,4783.7,3.3541]
[1756079466668,0.2353,4784.1,4784.0,0.3771]
[1756079466873,0.612,4784.1,4784.0,1.2983]
[1756079467171,1.0839,4784.1,4784.0,1.2983]
[1756079467777,0.5591,4785.1,4784.5,1.2983]
[1756079467969,1.0829,4785.1,4785.0,0.5234]
[1756079468165,1.0829,4785.1,4785.0,0.7515]
[1756079468467,1.3182,4784.7,4784.6,1.0832]
[1756079468874,1.3182,4784.7,4784.6,1.2983]
[1756079476777,0.2353,4785.1,4784.9,0.2151]
[1756079476979,0.2967,4783.1,4783.0,0.3805]
[1756079477171,0.531,4782.6,4782.5,0.3805]
[1756079477482,0.531,4781.9,4781.8,3.5883]
[1756079477677,0.2343,4782.4,4781.8,3.7312]
[1756079478175,0.531,4782.4,4782.3,0.3805]
[1756079478879,0.531,4782.4,4782.3,0.9273]
[1756079479277,0.2967,4782.4,4782.0,0.2151]
[1756079479577,0.531,4782.1,4782.0,0.9273]
[1756079480179,0.531,4782.1,4782.0,1.1755]
[1756079480379,0.531,4782.1,4782.0,20.6255]
[1756079480674,0.531,4783.0,4782.9,1.0702]
[1756079480984,0.3814,4783.0,4782.9,1.1755]
[1756079481577,0.531,4783.0,4782.9,0.9273]
[1756079481877,0.7663,4783.0,4782.9,0.5956]
[1756079482886,0.7663,4783.0,4782.9,0.9273]
[1756079483274,0.7663,4783.0,4782.9,0.5956]
[1756079483481,0.531,4782.7,4782.6,20.0426]
[1756079483677,0.3814,4782.7,4782.6,20.5172]
[1756079483878,0.2343,4783.0,4782.7,0.6521]
[1756079484094,0.2967,4782.8,4782.7,0.5234]
[1756079484287,0.531,4782.8,4782.7,0.5234]
[1756079484584,0.531,4782.8,4782.7,0.5956]
[1756079484790,0.7663,4782.8,4782.7,0.5956]
[1756079486487,0.3814,4782.8,4782.7,1.1755]
[1756079486887,3.4421,4783.1,4782.7,0.5234]
[1756079487080,3.4421,4783.1,4782.5,19.447]
[1756079487081,3.5892,4783.1,4783.0,0.8438]
[1756079487280,3.7388,4783.1,4783.0,1.1755]
[1756079487691,3.7405,4783.1,4783.0,1.1755]
[1756079488090,0.5327,4783.1,4783.0,1.1755]
[1756079488487,0.5355,4783.1,4783.0,1.0702]
[1756079488888,0.5355,4783.1,4783.0,0.9273]
[1756079489285,0.3822,4783.1,4783.0,1.1865]
[1756079489693,0.5343,4783.1,4783.0,1.1865]
[1756079489890,0.536,4783.1,4783.0,1.1865]
[1756079490092,0.5388,4783.1,4783.0,1.08]
[1756079490492,0.5388,4783.1,4783.0,0.9273]
[1756079490792,0.2291,4783.4,4783.0,0.5332]
[1756079490990,3.4369,4783.6,4783.5,0.627]
[1756079491192,3.4369,4783.6,4783.5,1.1898]
[1756079491391,3.7369,4783.6,4783.5,1.1898]
[1756079491690,3.5848,4783.6,4783.5,1.1898]
[1756079491889,0.377,4784.1,4784.0,1.1898]
[1756079492291,0.5291,4784.1,4784.0,1.1898]
[1756079493292,0.377,4784.1,4784.0,1.1898]
[1756079493594,3.2078,4784.2,4784.1,0.6693]
[1756079493795,3.2078,4784.2,4784.1,1.1898]
[1756079494398,3.2078,4784.2,4784.1,20.6368]
[1756079495192,0.5291,4784.7,4784.6,0.2983]
[1756079495491,0.377,4784.7,4784.6,1.1898]
[1756079495690,3.2078,4784.8,4784.6,1.1898]
[1756079495891,0.2291,4785.1,4784.7,1.1898]
[1756079496091,0.5291,4785.2,4785.1,0.3678]
[1756079496286,0.7661,4785.2,4785.1,0.2369]
[1756079496489,0.5335,4785.2,4785.1,0.9306]
[1756079496689,0.7661,4785.2,4785.1,0.9306]
[1756079496895,0.7661,4785.2,4785.1,0.2369]
[1756079497096,0.4634,4785.1,4785.0,0.2369]
[1756079497298,0.7661,4785.1,4785.0,0.6047]
[1756079497596,0.7661,4785.1,4785.0,0.9306]
[1756079499502,0.5335,4785.1,4785.0,0.9306]
[1756079501298,0.377,4785.1,4785.0,1.1898]
[1756079501598,3.2078,4785.3,4785.2,1.1898]
[1756079501802,3.5848,4785.3,4785.2,1.1898]
[1756079502502,3.7369,4785.3,4785.2,20.6318]
[1756079503505,3.7369,4785.3,4785.2,20.6308]
[1756079503706,3.5848,4785.3,4785.2,20.6308]
[1756079503904,3.2078,4785.3,4785.2,20.6308]
[1756079504098,3.2078,4785.9,4785.3,0.3259]
[1756079504302,3.5122,4785.9,4785.8,0.9306]
[1756079504602,3.7448,4785.9,4785.8,0.9306]
[1756079504800,3.9739,4785.9,4785.8,0.9306]
[1756079505001,3.9739,4785.9,4785.8,20.3716]
[1756079505401,3.7413,4785.9,4785.8,20.3716]
[1756079506404,3.9739,4785.9,4785.8,20.3716]
[1756079506903,7.5105,4785.9,4784.8,3.2078]
[1756079507108,0.5335,4785.0,4784.9,1.0371]
[1756079507308,0.5335,4785.0,4784.9,0.9306]
[1756079508300,0.5335,4785.0,4784.9,20.3686]
[1756079508506,0.5308,4785.0,4784.9,1.1898]
[1756079508706,0.377,4785.0,4784.9,20.6278]
[1756079509800,0.5291,4785.0,4784.9,20.6278]
[1756079510004,0.537,4784.7,4784.6,19.6739]
[1756079510307,0.7661,4784.7,4784.6,20.0417]
[1756079510807,0.5335,4784.7,4784.6,20.3676]
[1756079511006,0.5335,4784.7,4784.6,0.9306]
[1756079511513,0.377,4784.7,4784.6,1.1898]
[1756079512111,0.5291,4784.7,4784.6,1.1898]
[1756079512612,0.5308,4784.7,4784.6,1.1898]
[1756079513412,0.5335,4784.7,4784.6,20.5193]
[1756079513714,0.5291,4784.7,4784.6,20.6258]
[1756079514517,0.5308,4784.7,4784.6,20.6258]
[1756079514811,0.5291,4784.7,4784.6,20.6258]
[1756079516009,0.5291,4784.7,4784.6,1.1898]
[1756079516511,0.5308,4784.7,4784.6,20.6248]
[1756079517908,3.2078,4784.8,4784.6,20.6248]
[1756079518110,0.7765,4785.2,4785.1,0.9319]
[1756079518704,4.3097,4785.2,4784.2,0.5641]
[1756079519008,0.5475,4784.3,4784.2,0.9319]
[1756079519307,0.5434,4784.3,4784.2,20.6254]
[1756079519513,3.2078,4784.8,4784.7,0.5209]
[1756079519707,3.2078,4784.8,4784.7,20.6254]
[1756079520313,2.8517,4784.8,4784.7,20.6254]
[1756079520511,3.2078,4785.3,4784.8,0.41801]
[1756079520707,3.2078,4785.3,4785.2,1.1914]
[1756079520906,3.2078,4785.3,4785.2,20.6244]
[1756079521107,3.2078,4785.3,4785.2,20.6254]
[1756079522308,4.5243,4785.3,4785.2,19.6687]
[1756079522508,0.5262,4785.0,4784.9,0.6035]
[1756079522715,1.3165,4785.0,4784.9,20.3649]
[1756079523216,1.3165,4785.0,4784.9,20.6244]
[1756079523415,1.3165,4785.0,4784.9,1.1914]
[1756079523716,1.3165,4785.0,4784.9,0.6035]
[1756079523913,1.3165,4785.0,4784.9,1.085]
[1756079524215,1.3165,4785.0,4784.9,20.6244]
[1756079524814,1.3165,4785.0,4784.9,0.1489]
[1756079525013,3.2078,4785.3,4784.6,0.5641]
[1756079525014,1.3165,4784.7,4784.6,0.3846]
[1756079525209,1.3165,4784.7,4784.6,0.6035]
[1756079525915,1.3165,4784.7,4784.6,0.2189]
[1756079526108,1.3165,4784.7,4784.6,19.432]
[1756079526109,0.5262,4784.7,4784.6,19.432]
[1756079526711,1.3165,4784.7,4784.6,19.432]
[1756079527011,0.5262,4784.4,4784.3,0.9319]
[1756079527208,1.3165,4784.4,4784.3,20.3639]
[1756079527612,1.3165,4784.4,4784.3,0.2189]
[1756079527813,1.3165,4784.4,4784.3,0.3678]
[1756079528010,0.3693,4783.7,4783.6,0.6962]
[1756079528312,3.2078,4784.1,4782.6,3.7719]
[1756079528510,1.3165,4782.7,4782.6,0.5641]
[1756079528717,0.5262,4782.7,4782.2,0.5641]
[1756079529017,0.7624,4782.3,4782.2,0.6273]
[1756079529406,0.7624,4782.3,4782.2,20.6224]
[1756079529610,0.7624,4782.3,4782.2,1.1914]
[1756079529817,0.3931,4782.3,4782.2,20.6224]
[1756079530414,0.2362,4782.6,4782.5,0.5209]
[1756079530613,0.2362,4782.6,4782.5,1.1914]
[1756079531515,0.5434,4782.6,4782.5,1.1914]
[1756079531716,0.5434,4782.6,4782.5,20.6234]
[1756079531915,0.3931,4782.6,4782.5,20.6234]
[1756079532211,3.2078,4783.1,4782.8,0.5209]
[1756079532418,3.9702,4783.1,4783.0,1.1914]
[1756079532811,4.5243,4783.1,4783.0,1.1914]
[1756079533308,4.5243,4783.1,4783.0,1.085]
[1756079533508,4.5243,4783.1,4783.0,0.3678]
[1756079533710,4.5243,4783.1,4783.0,0.5209]
[1756079534017,1.3165,4783.1,4783.0,20.518]
[1756079534320,1.3165,4783.1,4783.0,20.6244]
[1756079534517,41.3541,4783.5,4783.0,20.6244]
[1756079534723,3.4368,4783.9,4783.0,19.433]
[1756079534915,3.9702,4783.9,4783.8,1.1914]
[1756079535221,4.5243,4783.9,4783.8,1.1914]
[1756079535415,1.3165,4783.3,4783.2,20.3649]
[1756079535723,0.5434,4783.6,4783.5,0.5209]
[1756079535919,0.5434,4783.6,4783.5,1.1914]
[1756079536317,0.7624,4783.6,4783.5,1.1914]
[1756079536511,3.2078,4783.9,4783.5,1.1914]
[1756079536721,0.3931,4783.8,4783.7,0.5209]
[1756079537021,3.6009,4783.9,4783.8,1.1914]
[1756079537418,3.2078,4783.9,4783.8,1.1914]
[1756079537720,3.6009,4784.6,4784.5,1.1914]
[1756079537916,3.7512,4784.6,4784.5,20.6244]
[1756079538111,1.83545228,4788.2,4784.5,20.6244]
[1756079538112,3.2078,4785.1,4785.0,1.0425]
[1756079538323,0.2362,4785.4,4785.0,20.6244]
[1756079538516,0.7624,4785.3,4785.2,0.5209]
[1756079538721,0.9914,4785.3,4785.2,1.1914]
[1756079538921,1.3165,4785.3,4785.2,1.1914]
[1756079539219,1.3165,4785.3,4785.2,0.1489]
[1756079539424,1.0875,4784.4,4783.9,19.7751]
[1756079539724,1.3165,4784.0,4783.9,20.3887]
[1756079540020,1.3165,4784.0,4783.9,20.3877]
[1756079540214,1.3165,4784.0,4783.9,20.6234]
[1756079540811,1.3165,4784.0,4783.9,1.1914]
[1756079541121,1.3165,4784.0,4783.9,20.517]
[1756079541918,1.3165,4784.0,4783.9,1.085]
[1756079542120,1.3165,4784.0,4783.9,19.432]
[1756079542423,1.3165,4784.0,4783.5,0.1064]
[1756079542424,0.7903,4783.8,4783.6,19.5799]
[1756079542725,1.3165,4783.7,4783.6,0.9319]
[1756079542926,1.3165,4783.7,4783.6,0.6035]
[1756079543517,0.5262,4783.7,4782.7,0.5641]
[1756079543719,0.5262,4783.7,4782.6,0.1064]
[1756079543720,0.7903,4783.4,4782.8,19.9941]
[1756079544027,0.3072,4782.9,4782.8,1.085]
[1756079544225,0.5434,4782.9,4782.8,20.6214]
[1756079544420,0.7624,4782.9,4782.8,20.6214]
[1756079545220,1.3165,4782.9,4782.8,19.7978]
[1756079545420,1.3165,4782.9,4782.8,0.3678]
[1756079545725,1.3165,4782.9,4782.8,0.1489]
[1756079545920,1.3165,4782.8,4782.7,0.3678]
[1756079546925,0.2362,4783.2,4782.7,1.1914]
[1756079547125,1.3165,4782.8,4782.7,0.3678]
[1756079548524,44.0078,4783.5,4783.3,0.539]
[1756079548525,0.2278,4783.4,4783.3,0.539]
[1756079548715,0.2278,4783.4,4783.3,1.2364]
[1756079548915,0.7585,4783.4,4783.3,1.2364]
[1756079549120,1.3393,4783.4,4783.3,1.2364]
[1756079550021,0.9908,4783.4,4783.3,1.2364]
[1756079550623,1.3393,4783.4,4783.3,1.2364]
[1756079551025,1.3393,4783.4,4783.3,1.1302]
[1756079551728,1.3393,4783.4,4783.3,0.3833]
[1756079552028,0.5307,4782.6,4782.5,1.2359]
[1756079552219,0.7585,4782.6,4782.5,1.2359]
[1756079552421,1.3393,4782.6,4782.5,1.1302]
[1756079553026,1.3393,4782.6,4782.5,1.2359]
[1756079553721,0.8086,4783.1,4782.6,0.5912]
[1756079553922,0.5243,4783.1,4783.0,1.2359]
[1756079554120,0.7585,4783.1,4783.0,1.2359]
[1756079554326,1.3393,4783.1,4783.0,1.2359]
[1756079554917,3.2078,4783.5,4783.4,0.8816]
[1756079555122,3.2078,4783.5,4783.4,1.2359]
[1756079555323,4.5471,4783.5,4783.4,0.5415]
[1756079555620,1.3393,4783.0,4782.9,0.9745]
[1756079555823,1.3393,4783.0,4782.9,1.1302]
[1756079556526,1.3393,4783.0,4782.9,1.2359]
[1756079556726,0.7585,4783.0,4782.9,1.2359]
[1756079558429,0.2278,4783.3,4782.9,0.539]
[1756079558630,0.3778,4783.3,4783.2,1.2359]
[1756079558824,0.5243,4783.3,4783.2,1.2359]
[1756079559028,0.7585,4783.3,4783.2,1.2359]
[1756079559329,1.3393,4783.3,4783.2,1.2359]
[1756079559930,1.3393,4783.3,4783.2,0.9745]
[1756079560827,0.5307,4782.3,4782.2,1.1302]
[1756079561033,0.5243,4782.3,4782.2,1.2359]
[1756079561333,0.2278,4782.6,4782.2,1.2359]
[1756079561532,0.5307,4782.3,4782.2,1.1302]
[1756079561732,0.7585,4782.3,4782.2,1.2359]
[1756079561934,1.3393,4782.3,4782.2,0.9745]
[1756079562234,1.3393,4782.3,4781.8,0.1057]
[1756079562430,0.5307,4781.9,4781.8,1.0802]
[1756079562623,1.3393,4781.9,4781.8,1.2359]
[1756079564531,1.3393,4781.9,4781.8,20.6639]
[1756079564730,1.3393,4781.9,4781.8,1.1302]
[1756079565732,1.3393,4781.9,4781.8,0.9745]
[1756079566331,0.5307,4781.5,4781.4,0.2369]
[1756079566533,0.5307,4781.5,4781.3,22.9911]
[1756079566730,1.3393,4781.4,4781.3,23.14]
[1756079567433,1.3393,4781.4,4781.3,3.711]
[1756079567634,1.3393,4781.4,4781.3,3.9454]
[1756079567933,1.3393,4781.4,4781.3,23.3744]
[1756079568129,1.3393,4781.4,4781.3,23.767]
[1756079568337,0.2278,4781.7,4781.6,0.539]
[1756079568636,0.2278,4781.7,4781.6,1.2359]
[1756079568838,41.0323,4782.2,4781.6,1.2359]
[1756079569136,40.8,4782.2,4782.1,1.2359]
[1756079569330,3.2078,4782.3,4782.2,0.6969]
[1756079569530,3.2078,4782.3,4782.2,1.2359]
[1756079569735,0.5243,4782.8,4782.7,1.2359]
[1756079569937,0.5243,4782.8,4782.7,20.6659]
[1756079570232,0.7585,4783.0,4782.9,0.539]
[1756079570437,1.3393,4783.0,4782.9,1.2359]
[1756079570739,0.2278,4783.3,4782.9,0.539]
[1756079570935,0.2278,4783.3,4783.2,0.539]